lending/lending_fUSD_20250102
["ID","MTS","AMOUNT","RATE_DAILY","PERIOD"]
[347416807,1735777838930,-8620.79,0.00010958,2]
[347416808,1735777838940,-500.0,0.00010958,2]
[347416809,1735777838949,-943.35,0.00010958,2]
[347416810,1735777838959,-1101.36,0.00010958,2]
[347416811,1735777838968,-500.0,0.00010958,2]
[347416812,1735777838977,-500.0,0.00010958,2]
[347416813,1735777838988,-1871.55,0.00010958,2]
[347416814,1735777838998,-500.0,0.00010958,2]
[347416815,1735777839016,-1420.31,0.00010958,2]
[347416816,1735777839026,-500.0,0.00010958,2]
[347416817,1735777839035,-2183.45,0.00010958,2]
[347416818,1735777839046,-4182.92,0.00010958,2]
[347416819,1735777839057,-937.0,0.00010958,2]
[347416820,1735777839066,-2166.68,0.00010958,2]
[347416821,1735777839077,-647.61,0.00010958,2]
[347416822,1735777839086,-1296.9,0.00010958,2]
[347416823,1735777839096,-4740.48,0.00010958,2]
[347416824,1735777839106,-1296.03,0.00010958,2]
[347416825,1735777839116,-500.77,0.00010958,2]
[347416826,1735777839125,-600.74,0.00010958,2]
[347416827,1735777839365,-500.0,0.00010958,2]
[347416828,1735777839376,-500.0,0.00010958,2]
[347416829,1735777839386,-500.0,0.00010958,2]
[347416830,1735777839396,-1115.71,0.00010958,2]
[347416831,1735777839406,-1555.24,0.00010958,2]
[347416832,1735777839415,-2577.84,0.00010958,2]
[347416833,1735777839425,-500.0,0.00010958,2]
[347416834,1735777839435,-150.0,0.00010959,2]
[347416835,1735777839445,-209898.47483995,0.0001097,2]
[347416836,1735777839455,-83370.6009306,0.0001097,2]
[347416837,1735777839465,-209898.47483995,0.00010973,2]
[347416838,1735777839474,-4706.34023734,0.00010973,2]
[347416839,1735777839484,-5067.62617881,0.00010979,2]
[347416841,1735777839976,-2100.0,0.00010979,2]
[347416842,1735777839988,-379.99999,0.00010979,2]
[347416843,1735777840007,-51520.53665,0.00010979,2]
[347416844,1735777840111,-2111.93158524,0.00010979,2]
[347416845,1735777840123,-4090.01649661,0.00010979,2]
[347416846,1735777840135,-920.76715178,0.00010979,2]
[347416847,1735777840147,-269.24235348,0.00010979,2]
[347416848,1735777840159,-581.68050782,0.00010979,2]
[347416849,1735777840170,-393.15,0.00010979,2]
[347416850,1735777840182,-4446.40001196,0.00010979,2]
[347416851,1735777840194,-19448.0,0.00010979,2]
[347416852,1735777840205,-498.92723845,0.00010979,2]
[347416853,1735777840217,-118070.1966758,0.00010979,2]
[347416854,1735777840227,-4706.34023734,0.00010982,2]
[347416855,1735777840237,-44142.07775498,0.00010984,2]
[347416856,1735777840247,-597.24032825,0.00010984,2]
[347416858,1735777840261,-66515.51788161,0.00010985,2]
[347416860,1735777840271,-66515.51788161,0.00010985,2]
[347416862,1735777840281,-66515.51788161,0.00010985,2]
[347416864,1735777840290,-209898.47483995,0.00010985,2]
[347416866,1735777840300,-597.24032825,0.00010986,2]
[347416868,1735777840310,-597.24032825,0.00010986,2]
[347416870,1735777840319,-150.0,0.00010986,2]
[347416872,1735777840329,-150.0,0.00010986,2]
[347416874,1735777840338,-150.0,0.00010986,2]
[347416876,1735777840347,-400.0,0.00010986,2]
[347416878,1735777840356,-66515.51788161,0.00010987,2]
[347416880,1735777840366,-83370.6009306,0.00010987,2]
[347416883,1735777840375,-28690.70162196,0.00010987,2]
[347416887,1735777840388,-37824.81625965,0.00010987,2]
[347416890,1735777840398,-108593.18293466,0.00010987,2]
[347416892,1735777840410,-34262.0807846,0.00010987,2]
[347416894,1735777840419,-502.6,0.00010987,2]
[347416896,1735777840428,-4706.34023734,0.00010988,2]
[347416898,1735777840438,-43300.8402621,0.00010989,2]
[347416900,1735777840449,-40069.7606685,0.00010989,2]
[347416902,1735777840458,-4706.34023734,0.00010989,2]
[347416904,1735777840468,-83370.6009306,0.00010989,2]
[347416906,1735777840477,-1603.67,0.0001099,2]
[347416908,1735777840487,-109295.11264384,0.0001099,2]
[347416910,1735777840497,-4706.34023734,0.00010991,2]
[347416912,1735777840511,-245.675,0.00010991,2]
[347416914,1735777840521,-1102.0,0.00010991,2]
[347416916,1735777840531,-636.0,0.00010991,2]
[347416918,1735777840541,-3892.0,0.00010991,2]
[347416920,1735777840550,-150.0,0.00010991,2]
[347416922,1735777840561,-9605.0,0.00010991,2]
[347416924,1735777840570,-4706.34023734,0.00010991,2]
[347416926,1735777840580,-200.0,0.00010992,2]
[347416928,1735777840591,-4706.34023734,0.00010993,2]
[347416930,1735777840602,-200.0,0.00010993,2]
[347416932,1735777840612,-597.24032825,0.00010993,2]
[347416934,1735777840622,-209898.47483995,0.00010993,2]
[347416936,1735777840634,-83370.6009306,0.00010993,2]
[347416938,1735777840645,-4706.34023734,0.00010994,2]
[347416940,1735777840656,-4706.34023734,0.00010995,2]
[347416942,1735777840667,-87939.7921158,0.00010995,2]
[347416944,1735777840677,-87939.7921158,0.00010996,2]
[347416946,1735777840687,-13846.23900268,0.00010996,2]
[347416948,1735777840700,-74093.55311312,0.00010996,2]
[347416950,1735777840711,-142855.26371926,0.00010996,2]
[347416952,1735777840720,-83370.6009306,0.00010997,2]
[347416954,1735777840730,-2673.84007304,0.00010998,2]
[347416956,1735777840741,-1027.199902,0.00010998,2]
[347416958,1735777840755,-409.56228241,0.00010998,2]
[347417035,1735777841721,-500.0,0.00010958,2]
[347417036,1735777841731,-500.0,0.00010958,2]
[347417037,1735777841741,-57.7,0.00010958,2]
[347417038,1735777842307,-1405.21,0.00010958,2]
[347417039,1735777842316,-500.0,0.00010958,2]
[347417040,1735777842326,-500.0,0.00010973,2]
[347417041,1735777842335,-898.54148366,0.00010991,2]
[347417042,1735777842347,-273.45851634,0.00010991,2]
[347417043,1735777842357,-333.81649866,0.00010998,2]
[347417044,1735777842368,-23000.0,0.00010998,2]
[347417045,1735777842379,-4080.32384475,0.00010998,2]
[347417046,1735777842391,-694.98749729,0.00010998,2]
[347417047,1735777842403,-562.00676926,0.00010998,2]
[347417048,1735777842415,-36771.95251661,0.00010998,2]
[347417049,1735777842426,-14573.48194788,0.00010998,2]
[347417050,1735777842445,-253.16910791,9.652e-05,2]
[347417051,1735777842454,-4570.10974498,0.00010998,2]
[347417052,1735777842465,-714.71437785,0.00010998,2]
[347417053,1735777842476,-120486.47938522,0.00010998,2]
[347417054,1735777842485,-1544.42,0.00010998,2]
[347417055,1735777842494,-2669.45,0.00010998,2]
[347417056,1735777842507,-3171.15,0.00010998,2]
[347417057,1735777842517,-2272.54121502,0.00010998,2]
[347417058,1735777842535,-2094.91878498,0.00010998,2]
[347417059,1735777842544,-8458.55,0.00010998,2]
[347417060,1735777842554,-3873.27,0.00010998,2]
[347417061,1735777842563,-8512.35,0.00010998,2]
[347417062,1735777842573,-3107.76,0.00010998,2]
[347417063,1735777842582,-6012.98,0.00010998,2]
[347417064,1735777842591,-2823.0,0.00010998,2]
[347417065,1735777842601,-1563.89,0.00010998,2]
[347417066,1735777842610,-914.84,0.00010998,2]
[347417067,1735777842619,-1862.88,0.00010998,2]
[347417068,1735777842628,-6036.29,0.00010998,2]
[347417069,1735777842638,-4406.86,0.00010998,2]
[347417070,1735777842647,-1814.5,0.00010998,2]
[347417071,1735777842656,-1347.97,0.00010998,2]
[347417072,1735777842666,-1308.93,0.00010998,2]
[347417073,1735777842675,-1129.25,0.00010998,2]
[347417074,1735777842684,-847.74,0.00010998,2]
[347417075,1735777842693,-4706.34023734,0.00010999,2]
[347417076,1735777842702,-4706.34023734,0.00010999,2]
[347417077,1735777842712,-836.67,0.00010999,2]
[347417079,1735777842721,-1000.0,0.00010999,2]
[347417080,1735777842730,-21356.12964618,0.00010999,2]
[347417081,1735777842739,-150.0,0.00010999,2]
[347417082,1735777842749,-855.75,0.00010999,2]
[347417083,1735777842761,-500.0,0.00010999,2]
[347417084,1735777842770,-500.0,0.00010999,2]
[347417085,1735777842779,-500.0,0.00010999,2]
[347417086,1735777842788,-500.0,0.00010999,2]
[347417087,1735777842797,-500.0,0.00010999,2]
[347417089,1735777842806,-254.63635664,0.00010999,2]
[347417091,1735777842816,-500.0,0.00010999,2]
[347417094,1735777842825,-500.0,0.00010999,2]
[347417098,1735777842834,-500.0,0.00010999,2]
[347417102,1735777842844,-500.0,0.00010999,2]
[347417106,1735777842853,-500.0,0.00010999,2]
[347417110,1735777842862,-194.64020175,0.00010999,2]
[347417113,1735777842871,-500.0,0.00010999,2]
[347417115,1735777842881,-500.0,0.00010999,2]
[347417119,1735777842890,-500.0,0.00010999,2]
[347417122,1735777842899,-500.0,0.00010999,2]
[347417126,1735777842908,-500.0,0.00010999,2]
[347417129,1735777842917,-500.0,0.00010999,2]
[347417133,1735777842927,-500.0,0.00010999,2]
[347417136,1735777842936,-500.0,0.00010999,2]
[347417140,1735777842945,-500.0,0.00010999,2]
[347417143,1735777842954,-500.0,0.00010999,2]
[347417146,1735777842964,-500.0,0.00010999,2]
[347417149,1735777842973,-500.0,0.00010999,2]
[347417152,1735777842982,-500.0,0.00010999,2]
[347417155,1735777842991,-500.0,0.00010999,2]
[347417157,1735777843001,-500.0,0.00010999,2]
[347417159,1735777843015,-500.0,0.00010999,2]
[347417161,1735777843025,-500.0,0.00010999,2]
[347417163,1735777843035,-500.0,0.00010999,2]
[347417165,1735777843044,-500.0,0.00010999,2]
[347417167,1735777843053,-500.0,0.00010999,2]
[347417168,1735777843062,-500.0,0.00010999,2]
[347417170,1735777843072,-500.0,0.00010999,2]
[347417172,1735777843081,-500.0,0.00010999,2]
[347417174,1735777843091,-500.0,0.00010999,2]
[347417176,1735777843101,-500.0,0.00010999,2]
[347417178,1735777843110,-438.75341717,0.00010999,2]
[347417180,1735777843122,-61.24658283,0.00010999,2]
[347417182,1735777843132,-500.0,0.00010999,2]
[347417184,1735777843141,-639.38686067,0.00010999,2]
[347417185,1735777843151,-500.0,0.00010999,2]
[347417186,1735777843160,-7574.59188297,0.00010999,2]
[347417187,1735777843169,-13763.99488826,0.00010999,2]
[347417188,1735777843180,-1000.0,0.00010999,2]
[347417189,1735777843191,-381656.4644305,0.00010999,2]
[347417190,1735777843300,-9445.1,0.00010999,2]
[347417191,1735777843314,-18499.44875606,0.00010999,2]
[347417192,1735777843326,-31199.9999992,0.00010999,2]
[347417193,1735777843357,-4941.09052972,0.00010999,2]
[347417194,1735777843369,-511.10987742,0.00010999,2]
[347417195,1735777843380,-466.62588,0.00010999,2]
[347417198,1735777843483,-529.1999988,0.00010958,2]
[347417199,1735777843495,-237.6300012,0.00010958,2]
[347417200,1735777843506,-137658.56052782,0.00010999,2]
[347417201,1735777843523,-349.69019323,0.00010999,2]
[347417202,1735777843534,-9786.66405846,0.00010999,2]
[347417203,1735777843545,-408.24082815,0.00010999,2]
[347417204,1735777843556,-2048.38202406,0.00010999,2]
[347417205,1735777843571,-9085.46180306,0.00010999,2]
[347417206,1735777843582,-23130.0,0.00010999,2]
[347417207,1735777843594,-62023.59609106,0.00010999,2]
[347417208,1735777843605,-27983.0677319,0.00010999,2]
[347417209,1735777843628,-426.17811177,0.00010999,2]
[347417210,1735777843639,-4406.33139998,0.00010999,2]
[347417211,1735777843650,-2448.40278486,0.00010999,2]
[347417212,1735777843672,-2170.14205106,0.00010999,2]
[347417213,1735777843683,-342.41312756,0.00010999,2]
[347417214,1735777843693,-509.40486528,0.00010999,2]
[347417215,1735777844183,-500.0,0.00010958,2]
[347417216,1735777844192,-505.01,0.00010958,2]
[347417217,1735777844202,-268.43445895,0.00010991,2]
[347417218,1735777844213,-297.56554105,0.00010991,2]
[347417219,1735777844223,-11.67495715,0.00010999,2]
[347417220,1735777844234,-495.2572,0.00010999,2]
[347417221,1735777844245,-1789.274995,0.00010999,2]
[347417222,1735777844274,-5056.06559932,0.00010999,2]
[347417223,1735777844285,-328.87434911,0.00010999,2]
[347417224,1735777844296,-621.1079985,0.00010999,2]
[347417225,1735777844308,-1852.800005,0.00010999,2]
[347417226,1735777844318,-2369.82866153,0.00010999,2]
[347417227,1735777844333,-84009.89723876,0.00010999,2]
[347417228,1735777844345,-604.0,0.00010999,2]
[347417229,1735777844362,-3165.53123548,0.00010999,2]
[347417230,1735777844373,-525.492,0.00010999,2]
[347417231,1735777844384,-1342.08854057,0.00010999,2]
[347417232,1735777844395,-3042.216401,0.00010999,2]
[347417247,1735777845971,-1680.0,0.00010999,2]
[347417248,1735777845982,-22970.48237042,0.00010999,2]
[347417251,1735777846029,-13008.1064152,0.00010999,2]
[347417252,1735777846040,-3409.026036,0.00010999,2]
[347417253,1735777846051,-678.24,0.00010999,2]
[347417254,1735777846062,-10032.2825889,0.00010999,2]
[347417255,1735777846096,-383.39428928,0.00010999,2]
[347417256,1735777846107,-5106.55160518,0.00010999,2]
[347417257,1735777846118,-432.82035298,0.00010999,2]
[347417258,1735777846236,-7163.59288313,0.00010999,2]
[347417259,1735777846247,-727.04806406,0.00010999,2]
[347417260,1735777846261,-482.5,0.00010999,2]
[347417261,1735777846276,-1875.10000005,0.00010999,2]
[347417262,1735777846289,-328.76539464,0.00010999,2]
[347417263,1735777846309,-1979.24,0.00010999,2]
[347417264,1735777846323,-512.5735568,0.00010999,2]
[347417265,1735777846334,-254.86807594,0.00010999,2]
[347417266,1735777846345,-29516.81888699,0.00010999,2]
[347417267,1735777846356,-37543.6328268,0.00010999,2]
[347417268,1735777846367,-3367.09382291,0.00010999,2]
[347417269,1735777846378,-2740.91799176,0.00010999,2]
[347417275,1735778014638,7888.998,0.00024732,30]
[347417282,1735778331702,515.99,9.551e-05,2]
[347417283,1735778465445,23900.0,9.593e-05,2]
[347417285,1735778571637,1020.41,8.219e-05,2]
[347417286,1735778572466,-1124.14,0.00019,60]
[347417287,1735778582530,1000.0,9.595e-05,2]
[347417288,1735778635239,250.0,9.513e-05,2]
[347417289,1735778636768,1243.37,9.513e-05,2]
[347417290,1735778656083,-2000.0,0.00019,60]
[347417291,1735778828475,930.75,9.519e-05,2]
[347417292,1735778845640,250.0,9.506e-05,2]
[347417293,1735778901646,514.6774,0.00012488,12]
[347417296,1735779006553,250.0,9.495e-05,2]
[347417308,1735779032132,-364.71,9.62e-05,2]
[347417309,1735779032141,-381.96,9.673e-05,2]
[347417310,1735779032150,-676.88740696,9.673e-05,2]
[347417311,1735779032166,-1826.35383257,9.673e-05,2]
[347417312,1735779032175,-163.53,9.714e-05,2]
[347417313,1735779032185,-500.0,9.753e-05,2]
[347417314,1735779032195,-233.64127874,9.888e-05,2]
[347417315,1735779032204,-150.0,9.888e-05,2]
[347417316,1735779032214,-150.0,9.888e-05,2]
[347417317,1735779032224,-199.14413373,9.888e-05,2]
[347417318,1735779032233,-492.62,0.00010064,2]
[347417319,1735779032244,-491.06,0.00010078,2]
[347417320,1735779032253,-150.0,0.00010082,2]
[347417321,1735779032263,-493.46,0.00010098,2]
[347417322,1735779032272,-150.99,0.00010098,2]
[347417323,1735779032281,-150.99,0.00010098,2]
[347417324,1735779032291,-113.92121942,0.00010099,2]
[347417325,1735779032333,-186.07878058,0.00010099,2]
[347417326,1735779032343,-113.92121942,0.000101,2]
[347417327,1735779032355,-657.57878058,0.000101,2]
[347417328,1735779032364,-437.54,0.000101,2]
[347417329,1735779032374,-437.54,0.000101,2]
[347417330,1735779032384,-308.4,0.000101,2]
[347417331,1735779032394,-1542.64,0.000101,2]
[347417332,1735779032403,-437.54,0.000101,2]
[347417333,1735779032415,-501.79,0.00010129,2]
[347417334,1735779032425,-504.18,0.00010129,2]
[347417335,1735779032434,-492.64,0.00010176,2]
[347417352,1735779032730,-299.99,0.00010176,2]
[347417354,1735779032743,-150.0,0.00010178,2]
[347417356,1735779032753,-509.62,0.0001019,2]
[347417357,1735779032762,-491.2,0.0001029,2]
[347417358,1735779032772,-491.29,0.0001029,2]
[347417359,1735779032781,-500.09,0.0001029,2]
[347417360,1735779032791,-503.57,0.0001029,2]
[347417361,1735779032800,-499.98,0.0001029,2]
[347417362,1735779032810,-493.18,0.0001029,2]
[347417363,1735779032819,-509.96,0.0001029,2]
[347417364,1735779032829,-500.12,0.0001029,2]
[347417365,1735779032838,-503.1,0.00010374,2]
[347417366,1735779032848,-505.61,0.0001039,2]
[347417367,1735779032857,-504.95,0.00010414,2]
[347417368,1735779032866,-200.0,0.00010447,2]
[347417369,1735779032876,-506.5,0.0001045,2]
[347417370,1735779032885,-1020.41,0.00010454,2]
[347417371,1735779032895,-491.57,0.0001046,2]
[347417372,1735779032907,-978.7,0.00010553,2]
[347417373,1735779032916,-150.0,0.00010553,2]
[347417374,1735779032926,-978.7,0.00010553,2]
[347417375,1735779032935,-150.0,0.00010553,2]
[347417376,1735779032945,-476.23,0.00010553,2]
[347417377,1735779032954,-182.79,0.00010553,2]
[347417378,1735779032964,-182.79,0.00010553,2]
[347417379,1735779032973,-182.79,0.00010553,2]
[347417380,1735779032982,-181.25,0.00010553,2]
[347417381,1735779032991,-182.79,0.00010578,2]
[347417382,1735779033001,-150.0,0.000107,2]
[347417383,1735779033010,-515.99,0.00010745,2]
[347417384,1735779033020,-1000.0,0.00010794,2]
[347417385,1735779033029,-584.89767548,0.000108,2]
[347417386,1735779033038,-2902.5231,0.000108,2]
[347417387,1735779033048,-6778.5253,0.000108,2]
[347417388,1735779033056,-10519.9844,0.000108,2]
[347417389,1735779033066,-491.99,0.00010858,2]
[347417390,1735779033075,-498.04,0.00010858,2]
[347417391,1735779033084,-504.81,0.00010858,2]
[347417392,1735779033093,-9430.8974,0.00010858,2]
[347417393,1735779033103,-5023.98919156,0.00010858,2]
[347417394,1735779033115,-7371.71060844,0.00010858,2]
[347417395,1735779033124,-1649.1996,0.00010858,2]
[347417396,1735779033133,-1037.3732,0.00010858,2]
[347417397,1735779033142,-5000.0,0.00010858,2]
[347417398,1735779033151,-607.317303,0.00010899,2]
[347417399,1735779033163,-1000.0,0.00010899,2]
[347417400,1735779033172,-741.8608974,0.000109,2]
[347417401,1735779033182,-293.31663136,0.000109,2]
[347417402,1735779033191,-36228.55446551,0.000109,2]
[347417403,1735779033202,-75598.25063047,0.000109,2]
[347417404,1735779033213,-38173.19490402,0.000109,2]
[347417405,1735779033224,-500.0,0.00010958,2]
[347417406,1735779033233,-500.0,0.00010958,2]
[347417407,1735779033242,-500.0,0.00010958,2]
[347417408,1735779033252,-500.0,0.00010958,2]
[347417409,1735779033261,-500.0,0.00010958,2]
[347417410,1735779033271,-429.42637826,0.00010958,2]
[347417411,1735779033281,-500.0,0.00010958,2]
[347417412,1735779033290,-500.0,0.00010958,2]
[347417413,1735779033300,-744.82,0.00010958,2]
[347417414,1735779033309,-500.0,0.00010958,2]
[347417415,1735779033318,-500.0,0.00010958,2]
[347417416,1735779033327,-82.01583073,0.00010958,2]
[347417417,1735779033340,-417.98416927,0.00010958,2]
[347417418,1735779033349,-500.0,0.00010958,2]
[347417419,1735779033359,-500.0,0.00010958,2]
[347417420,1735779033368,-500.0,0.00010958,2]
[347417421,1735779033378,-500.0,0.00010958,2]
[347417422,1735779033388,-712.93,0.00010958,2]
[347417423,1735779033397,-500.0,0.00010958,2]
[347417424,1735779033408,-500.0,0.00010958,2]
[347417425,1735779033417,-920.51,0.00010958,2]
[347417426,1735779033426,-500.0,0.00010958,2]
[347417427,1735779033437,-500.0,0.00010958,2]
[347417428,1735779033446,-500.0,0.00010958,2]
[347417429,1735779033456,-807.48,0.00010958,2]
[347417430,1735779033466,-500.0,0.00010958,2]
[347417431,1735779033476,-500.0,0.00010958,2]
[347417432,1735779033486,-500.0,0.00010958,2]
[347417433,1735779033496,-500.0,0.00010958,2]
[347417434,1735779033505,-500.0,0.00010958,2]
[347417435,1735779033515,-500.0,0.00010958,2]
[347417436,1735779033525,-664.8,0.00010958,2]
[347417437,1735779033534,-500.0,0.00010958,2]
[347417438,1735779033544,-500.0,0.00010958,2]
[347417439,1735779033554,-500.0,0.00010958,2]
[347417440,1735779033564,-500.0,0.00010958,2]
[347417441,1735779033574,-626.26,0.00010958,2]
[347417442,1735779033584,-500.0,0.00010958,2]
[347417443,1735779033594,-324.57443329,0.00010958,2]
[347417444,1735779033603,-500.0,0.00010958,2]
[347417445,1735779033612,-500.0,0.00010958,2]
[347417446,1735779033622,-680.28,0.00010958,2]
[347417447,1735779033632,-671.13,0.00010958,2]
[347417448,1735779033645,-500.0,0.00010958,2]
[347417449,1735779033657,-500.0,0.00010958,2]
[347417450,1735779033667,-500.0,0.00010958,2]
[347417451,1735779033679,-500.0,0.00010958,2]
[347417452,1735779033689,-500.0,0.00010958,2]
[347417453,1735779033698,-500.0,0.00010958,2]
[347417454,1735779033708,-500.0,0.00010958,2]
[347417455,1735779033719,-500.0,0.00010958,2]
[347417456,1735779033729,-500.0,0.00010958,2]
[347417457,1735779033739,-866.1,0.00010958,2]
[347417458,1735779033748,-500.0,0.00010958,2]
[347417459,1735779033757,-500.0,0.00010958,2]
[347417460,1735779033767,-777.83,0.00010958,2]
[347417461,1735779033776,-500.0,0.00010958,2]
[347417462,1735779033785,-500.0,0.00010958,2]
[347417463,1735779033794,-685.32,0.00010958,2]
[347417464,1735779033804,-500.0,0.00010958,2]
[347417465,1735779033813,-500.0,0.00010958,2]
[347417466,1735779033823,-500.0,0.00010958,2]
[347417467,1735779033832,-500.0,0.00010958,2]
[347417468,1735779033842,-704.85,0.00010958,2]
[347417469,1735779033851,-500.0,0.00010958,2]
[347417470,1735779033860,-500.0,0.00010958,2]
[347417471,1735779033870,-623.82,0.00010958,2]
[347417472,1735779033879,-500.0,0.00010958,2]
[347417473,1735779033888,-595.81,0.00010958,2]
[347417474,1735779033898,-557.55,0.00010958,2]
[347417475,1735779033908,-612.35216311,0.00010958,2]
[347417476,1735779033917,-172.91,0.00010958,2]
[347417477,1735779033926,-2303.869,0.00010958,2]
[347417478,1735779033935,-500.0,0.00010958,2]
[347417479,1735779033945,-500.0,0.00010958,2]
[347417480,1735779033954,-838.2,0.00010958,2]
[347417481,1735779033963,-500.0,0.00010958,2]
[347417482,1735779033972,-500.0,0.00010958,2]
[347417483,1735779033981,-500.0,0.00010958,2]
[347417484,1735779033990,-500.0,0.00010958,2]
[347417485,1735779034000,-823.21,0.00010958,2]
[347417486,1735779034010,-556.95,0.00010958,2]
[347417487,1735779034021,-500.0,0.00010958,2]
[347417488,1735779034033,-532.21,0.00010958,2]
[347417489,1735779034043,-655.7,0.00010958,2]
[347417490,1735779034052,-1042.31,0.00010958,2]
[347417491,1735779034062,-500.0,0.00010958,2]
[347417492,1735779034072,-500.0,0.00010958,2]
[347417493,1735779034082,-761.53,0.00010958,2]
[347417494,1735779034091,-500.0,0.00010958,2]
[347417495,1735779034100,-500.0,0.00010958,2]
[347417496,1735779034109,-530.67,0.00010958,2]
[347417497,1735779034119,-500.0,0.00010958,2]
[347417498,1735779034128,-500.0,0.00010958,2]
[347417499,1735779034138,-500.0,0.00010958,2]
[347417500,1735779034147,-840.14,0.00010958,2]
[347417501,1735779034157,-980.05,0.00010958,2]
[347417502,1735779034166,-674.7,0.00010958,2]
[347417503,1735779034175,-500.0,0.00010958,2]
[347417504,1735779034185,-500.0,0.00010958,2]
[347417505,1735779034194,-500.0,0.00010958,2]
[347417506,1735779034203,-500.0,0.00010958,2]
[347417507,1735779034212,-895.55,0.00010958,2]
[347417508,1735779034222,-746.81,0.00010958,2]
[347417509,1735779034231,-500.0,0.00010958,2]
[347417510,1735779034240,-500.0,0.00010958,2]
[347417511,1735779034249,-1863.78,0.00010958,2]
[347417512,1735779034259,-500.0,0.00010958,2]
[347417513,1735779034268,-943.54,0.00010958,2]
[347417514,1735779034277,-936.16,0.00010958,2]
[347417515,1735779034286,-500.0,0.00010958,2]
[347417516,1735779034295,-1480.07,0.00010958,2]
[347417517,1735779034305,-2578.77,0.00010958,2]
[347417518,1735779034314,-500.0,0.00010958,2]
[347417519,1735779034323,-500.0,0.00010958,2]
[347417520,1735779034332,-500.0,0.00010958,2]
[347417521,1735779034342,-500.0,0.00010958,2]
[347417522,1735779034351,-1046.33,0.00010958,2]
[347417523,1735779034360,-611.56,0.00010958,2]
[347417524,1735779034370,-676.41,0.00010958,2]
[347417525,1735779034379,-500.0,0.00010958,2]
[347417526,1735779034389,-609.68,0.00010958,2]
[347417527,1735779034398,-680.59,0.00010958,2]
[347417528,1735779034408,-886.7,0.00010958,2]
[347417529,1735779034418,-500.0,0.00010958,2]
[347417530,1735779034427,-2558.22,0.00010958,2]
[347417531,1735779034437,-500.0,0.00010958,2]
[347417532,1735779034446,-500.0,0.00010958,2]
[347417533,1735779034456,-1101.19,0.00010958,2]
[347417534,1735779034466,-502.44731956,0.00010958,2]
[347417535,1735779034476,-500.0,0.00010958,2]
[347417536,1735779034485,-500.0,0.00010958,2]
[347417537,1735779034495,-566.0,0.00010958,2]
[347417538,1735779034505,-664.75,0.00010958,2]
[347417539,1735779034514,-500.0,0.00010958,2]
[347417540,1735779034524,-500.0,0.00010958,2]
[347417541,1735779034534,-500.0,0.00010958,2]
[347417542,1735779034543,-827.09,0.00010958,2]
[347417543,1735779034553,-500.0,0.00010958,2]
[347417544,1735779034562,-1153.4,0.00010958,2]
[347417545,1735779034572,-734.9,0.00010958,2]
[347417546,1735779034581,-500.0,0.00010958,2]
[347417547,1735779034590,-836.15,0.00010958,2]
[347417548,1735779034600,-500.0,0.00010958,2]
[347417549,1735779034609,-739.63,0.00010958,2]
[347417550,1735779034619,-500.0,0.00010958,2]
[347417551,1735779034628,-540.51,0.00010958,2]
[347417552,1735779034639,-500.0,0.00010958,2]
[347417553,1735779034650,-969.43,0.00010958,2]
[347417554,1735779034662,-787.68,0.00010958,2]
[347417555,1735779034671,-506.0,0.00010958,2]
[347417556,1735779034681,-500.0,0.00010958,2]
[347417557,1735779034692,-1431.88,0.00010958,2]
[347417558,1735779034701,-1236.28,0.00010958,2]
[347417559,1735779034710,-325.9191671,0.00010958,2]